fUSD/lending_fUSD_20250814
["ID","MTS","AMOUNT","RATE_DAILY","PERIOD"]
[379158597,1755168678600,-692.44,0.00035753,12]
[379158598,1755168678610,-6192.48,0.00035753,12]
[379158599,1755168678619,-400.0,0.00035753,12]
[379158600,1755168678629,-962.63,0.00035753,12]
[379158601,1755168678639,-560.25,0.00035753,2]
[379158602,1755168678649,-444.7,0.00035753,12]
[379158603,1755168678659,-400.0,0.00035753,12]
[379158604,1755168678668,-842.76,0.00035753,12]
[379158605,1755168678679,-6321.4,0.00035753,12]
[379158606,1755168678688,-3229.64,0.00035753,12]
[379158607,1755168678698,-877.58,0.00035753,12]
[379158608,1755168678708,-2016.78,0.00035753,12]
[379158609,1755168678717,-981.27,0.00035753,12]
[379158610,1755168678727,-3552.14,0.00035753,12]
[379158611,1755168678736,-400.0,0.00035753,12]
[379158612,1755168678746,-400.0,0.00035753,12]
[379158613,1755168678756,-400.0,0.00035753,12]
[379158614,1755168678765,-400.0,0.00035753,12]
[379158615,1755168678775,-1191.7,0.00035753,12]
[379158616,1755168678786,-400.0,0.00035753,12]
[379158617,1755168678796,-400.0,0.00035753,12]
[379158618,1755168678806,-400.0,0.00035753,12]
[379158619,1755168678816,-748.47,0.00035753,12]
[379158620,1755168678825,-400.0,0.00035753,12]
[379158621,1755168678835,-424.53,0.00035753,12]
[379158622,1755168678844,-1126.76,0.00035753,12]
[379158623,1755168678854,-406.19466609,0.00035753,12]
[379158624,1755168678864,-3670.6,0.00035753,12]
[379158625,1755168678874,-3102.44,0.00035753,12]
[379158626,1755168678885,-400.0,0.00035753,12]
[379158627,1755168678894,-400.0,0.00035753,12]
[379158628,1755168678904,-467.21,0.00035753,12]
[379158629,1755168678914,-400.0,0.00035753,12]
[379158630,1755168678924,-400.0,0.00035753,12]
[379158631,1755168678934,-400.0,0.00035753,12]
[379158632,1755168678943,-471.268021,0.00035753,7]
[379158633,1755168678953,-6154.06,0.00035753,12]
[379158634,1755168678962,-471.268021,0.00035753,7]
[379158635,1755168678972,-2063.94,0.00035753,12]
[379158636,1755168678983,-3147.43,0.00035753,12]
[379158637,1755168678992,-400.0,0.00035753,12]
[379158638,1755168679002,-400.0,0.00035753,12]
[379158639,1755168679012,-404.82585023,0.00035753,12]
[379158640,1755168679021,-471.268021,0.00035753,7]
[379158641,1755168679032,-471.268021,0.00035753,7]
[379158642,1755168679044,-400.0,0.00035753,12]
[379158643,1755168679055,-589.11,0.00035753,12]
[379158644,1755168679066,-400.0,0.00035753,12]
[379158645,1755168679076,-2966.14,0.00035753,12]
[379158646,1755168679088,-400.0,0.00035753,12]
[379158647,1755168679098,-400.0,0.00035753,12]
[379158648,1755168679108,-506.97,0.00035753,12]
[379158649,1755168679120,-1563.35,0.00035753,12]
[379158650,1755168679131,-498.4,0.00035753,12]
[379158651,1755168679141,-400.0,0.00035753,12]
[379158652,1755168679154,-1085.74,0.00035753,12]
[379158653,1755168679166,-625.71,0.00035753,12]
[379158654,1755168679175,-3263.7,0.00035753,12]
[379158655,1755168679186,-2075.76,0.00035753,12]
[379158656,1755168679196,-400.0,0.00035753,12]
[379158657,1755168679205,-400.0,0.00035753,12]
[379158658,1755168679215,-1403.360772,0.00035753,12]
[379158659,1755168679225,-2435.406062,0.00035753,12]
[379158660,1755168679234,-2244.98,0.00035753,12]
[379158661,1755168679245,-531.38,0.00035753,12]
[379158662,1755168679255,-1228.52,0.00035753,12]
[379158663,1755168679264,-400.0,0.00035753,12]
[379158664,1755168679274,-498.42,0.00035753,12]
[379158665,1755168679285,-400.0,0.00035753,12]
[379158666,1755168679295,-3419.27,0.00035753,12]
[379158667,1755168679304,-400.0,0.00035753,12]
[379158668,1755168679314,-920.16,0.00035753,12]
[379158669,1755168679324,-3319.48,0.00035753,12]
[379158670,1755168679333,-400.0,0.00035753,12]
[379158671,1755168679344,-5318.17,0.00035753,12]
[379158672,1755168679355,-1690.89,0.00035753,12]
[379158673,1755168679365,-1250.46,0.00035753,12]
[379158674,1755168679375,-400.0,0.00035753,12]
[379158675,1755168679385,-400.0,0.00035753,12]
[379158676,1755168679395,-4178.98,0.00035753,12]
[379158677,1755168679404,-400.0,0.00035753,12]
[379158678,1755168679414,-536.37,0.00035753,12]
[379158679,1755168679423,-400.0,0.00035753,12]
[379158680,1755168679434,-400.0,0.00035753,12]
[379158681,1755168679444,-264.882641,0.00035753,12]
[379158682,1755168679454,-1512.77,0.00035753,12]
[379158683,1755168679463,-400.0,0.00035753,12]
[379158684,1755168679474,-1654.04,0.00035753,12]
[379158685,1755168679484,-400.0,0.00035753,12]
[379158686,1755168679494,-733.31,0.00035753,12]
[379158687,1755168679504,-400.0,0.00035753,12]
[379158688,1755168679513,-2815.98,0.00035753,12]
[379158689,1755168679522,-2327.52,0.00035753,12]
[379158690,1755168679535,-400.0,0.00035753,12]
[379158691,1755168679544,-400.0,0.00035753,12]
[379158692,1755168679553,-400.0,0.00035753,12]
[379158693,1755168679562,-348.05,0.00035753,12]
[379158694,1755168679572,-723.61,0.00035753,12]
[379158695,1755168679582,-151.0,0.00035753,7]
[379158696,1755168679592,-719.92,0.00035753,12]
[379158697,1755168679601,-277.458919,0.00035753,7]
[379158698,1755168679611,-400.0,0.00035753,12]
[379158699,1755168679621,-400.0,0.00035753,12]
[379158700,1755168679631,-400.0,0.00035753,12]
[379158701,1755168679641,-1008.84,0.00035753,12]
[379158702,1755168679650,-400.0,0.00035753,12]
[379158703,1755168679661,-560.49,0.00035753,12]
[379158704,1755168679671,-1777.34,0.00035753,12]
[379158705,1755168679681,-1724.9,0.00035753,12]
[379158706,1755168679691,-1889.996919,0.00035753,12]
[379158707,1755168679700,-400.0,0.00035753,12]
[379158708,1755168679709,-2319.78,0.00035753,12]
[379158709,1755168679719,-1109.76,0.00035753,12]
[379158710,1755168679728,-400.0,0.00035753,12]
[379158711,1755168679738,-400.0,0.00035753,12]
[379158712,1755168679748,-305.34951362,0.00035753,12]
[379158713,1755168679757,-1151.7,0.00035753,12]
[379158714,1755168679767,-873.16,0.00035753,12]
[379158715,1755168679777,-4291.04,0.00035753,12]
[379158716,1755168679790,-2243.35,0.00035753,12]
[379158717,1755168679800,-400.0,0.00035753,12]
[379158718,1755168679810,-400.0,0.00035753,12]
[379158719,1755168679819,-1804.76,0.00035753,12]
[379158720,1755168679830,-400.0,0.00035753,12]
[379158721,1755168679840,-3852.15,0.00035753,12]
[379158722,1755168679849,-1600.17,0.00035753,12]
[379158723,1755168679860,-809.809754,0.00035753,7]
[379158724,1755168679871,-400.0,0.00035753,12]
[379158725,1755168679881,-400.0,0.00035753,12]
[379158726,1755168679891,-2904.13,0.00035753,12]
[379158727,1755168679901,-400.0,0.00035753,12]
[379158728,1755168679911,-400.0,0.00035753,12]
[379158729,1755168679920,-2492.59,0.00035753,12]
[379158730,1755168679929,-766.63,0.00035753,12]
[379158731,1755168679939,-823.08,0.00035753,12]
[379158732,1755168679948,-400.0,0.00035753,12]
[379158733,1755168679958,-326.05624125,0.00035753,12]
[379158734,1755168679968,-1966.38,0.00035753,12]
[379158735,1755168679977,-809.809754,0.00035753,7]
[379158736,1755168679988,-780.41,0.00035753,12]
[379158737,1755168679997,-400.0,0.00035753,12]
[379158738,1755168680007,-406.48,0.00035753,12]
[379158739,1755168680017,-2277.23,0.00035753,12]
[379158740,1755168680027,-4173.85,0.00035753,12]
[379158741,1755168680038,-2791.47,0.00035753,12]
[379158742,1755168680050,-527.68,0.00035753,12]
[379158743,1755168680060,-238.532414,0.00035753,7]
[379158744,1755168680070,-150.555591,0.00035753,12]
[379158745,1755168680079,-238.532414,0.00035753,7]
[379158746,1755168680090,-400.0,0.00035753,12]
[379158747,1755168680100,-400.0,0.00035753,12]
[379158748,1755168680109,-747.83,0.00035753,12]
[379158749,1755168680120,-400.0,0.00035753,12]
[379158750,1755168680129,-151.0,0.00035753,7]
[379158751,1755168680138,-550.18,0.00035753,12]
[379158752,1755168680148,-662.78,0.00035753,12]
[379158753,1755168680157,-238.532414,0.00035753,7]
[379158754,1755168680167,-400.0,0.00035753,12]
[379158755,1755168680176,-238.532414,0.00035753,7]
[379158756,1755168680186,-580.19,0.00035753,12]
[379158757,1755168680195,-5412.38,0.00035753,12]
[379158758,1755168680205,-777.12,0.00035753,12]
[379158759,1755168680215,-400.0,0.00035753,12]
[379158760,1755168680225,-400.0,0.00035753,12]
[379158761,1755168680234,-400.0,0.00035753,12]
[379158762,1755168680244,-400.0,0.00035753,12]
[379158763,1755168680254,-3155.75,0.00035753,12]
[379158764,1755168680264,-400.0,0.00035753,12]
[379158765,1755168680273,-400.0,0.00035753,12]
[379158766,1755168680285,-400.0,0.00035753,12]
[379158767,1755168680294,-400.0,0.00035753,12]
[379158768,1755168680304,-400.0,0.00035753,12]
[379158769,1755168680314,-574.7,0.00035753,12]
[379158770,1755168680324,-917.92,0.00035753,12]
[379158771,1755168680333,-400.0,0.00035753,12]
[379158772,1755168680343,-461.0,0.00035753,12]
[379158773,1755168680352,-2562.51,0.00035753,12]
[379158774,1755168680363,-3780.57,0.00035753,12]
[379158775,1755168680372,-3941.94,0.00035753,12]
[379158776,1755168680382,-2908.54,0.00035753,12]
[379158777,1755168680391,-400.0,0.00035753,12]
[379158778,1755168680401,-400.0,0.00035753,12]
[379158779,1755168680411,-2497.02,0.00035753,12]
[379158780,1755168680420,-1532.09,0.00035753,12]
[379158781,1755168680430,-1131.87,0.00035753,12]
[379158782,1755168680439,-400.0,0.00035753,12]
[379158783,1755168680449,-4170.532372,0.00035753,7]
[379158784,1755168680459,-4170.532372,0.00035753,7]
[379158785,1755168680469,-634.28,0.00035753,12]
[379158786,1755168680479,-400.0,0.00035753,12]
[379158787,1755168680488,-1146.21,0.00035753,12]
[379158788,1755168680498,-400.0,0.00035753,12]
[379158789,1755168680507,-1856.69,0.00035753,12]
[379158790,1755168680517,-400.0,0.00035753,12]
[379158791,1755168680527,-400.0,0.00035753,12]
[379158792,1755168680540,-3424.56,0.00035753,12]
[379158793,1755168680549,-4170.532372,0.00035753,7]
[379158794,1755168680559,-2936.99,0.00035753,12]
[379158795,1755168680569,-658.86,0.00035753,12]
[379158796,1755168680579,-4170.532372,0.00035753,7]
[379158797,1755168680719,-3420.59,0.00035753,12]
[379158798,1755168680729,-400.0,0.00035753,12]
[379158799,1755168680738,-3439.15,0.00035753,12]
[379158800,1755168680747,-400.0,0.00035753,12]
[379158801,1755168680756,-400.0,0.00035753,12]
[379158802,1755168680766,-3117.98,0.00035753,12]
[379158803,1755168680776,-400.0,0.00035753,12]
[379158804,1755168680788,-400.0,0.00035753,12]
[379158805,1755168680798,-4142.03,0.00035753,12]
[379158806,1755168680807,-3366.26,0.00035753,12]
[379158807,1755168680817,-400.0,0.00035753,12]
[379158808,1755168680826,-829.77,0.00035753,12]
[379158809,1755168680835,-400.0,0.00035753,12]
[379158810,1755168680845,-400.0,0.00035753,12]
[379158811,1755168680854,-400.0,0.00035753,12]
[379158812,1755168680865,-400.0,0.00035753,12]
[379158813,1755168680874,-1639.17,0.00035753,12]
[379158814,1755168680884,-400.0,0.00035753,12]
[379158815,1755168680893,-400.0,0.00035753,12]
[379158816,1755168680902,-3395.45,0.00035753,12]
[379158817,1755168680912,-1006.08,0.00035753,12]
[379158818,1755168680921,-3282.75,0.00035753,12]
[379158819,1755168680931,-744.541939,0.00035753,7]
[379158820,1755168680942,-744.541939,0.00035753,7]
[379158821,1755168680952,-400.0,0.00035753,12]
[379158822,1755168680961,-903.220085,0.00035753,7]
[379158823,1755168680972,-3198.45,0.00035753,12]
[379158824,1755168680981,-903.220085,0.00035753,7]
[379158825,1755168680991,-400.0,0.00035753,12]
[379158826,1755168681001,-744.541939,0.00035753,7]
[379158827,1755168681011,-744.541939,0.00035753,7]
[379158828,1755168681020,-151.0,0.00035753,7]
[379158829,1755168681030,-2468.968934,0.00035753,7]
[379158830,1755168681045,-903.220085,0.00035753,7]
[379158831,1755168681054,-903.220085,0.00035753,7]
[379158832,1755168681063,-2468.968934,0.00035753,7]
[379158833,1755168681072,-2663.39,0.00035753,12]
[379158834,1755168681082,-400.0,0.00035753,12]
[379158835,1755168681092,-151.0,0.00035753,7]
[379158836,1755168681102,-505.13491224,0.00035753,12]
[379158837,1755168681111,-2067.11,0.00035753,12]
[379158838,1755168681127,-865.77,0.00035753,12]
[379158839,1755168681140,-400.0,0.00035753,12]
[379158840,1755168681150,-393.13269348,0.00035753,12]
[379158841,1755168681159,-2034.23,0.00035753,12]
[379158842,1755168681168,-2468.968934,0.00035753,7]
[379158843,1755168681178,-2594.93,0.00035753,12]
[379158844,1755168681188,-2468.968934,0.00035753,7]
[379158845,1755168681197,-400.0,0.00035753,12]
[379158846,1755168681206,-400.0,0.00035753,12]
[379158847,1755168681215,-400.0,0.00035753,12]
[379158848,1755168681225,-478.34,0.00035753,12]
[379158849,1755168681235,-400.0,0.00035753,12]
[379158850,1755168681244,-3988.59,0.00035753,12]
[379158851,1755168681253,-400.0,0.00035753,12]
[379158852,1755168681263,-400.0,0.00035753,12]
[379158853,1755168681272,-1604.22,0.00035753,12]
[379158854,1755168681281,-400.0,0.00035753,12]
[379158855,1755168681292,-400.0,0.00035753,12]
[379158856,1755168681301,-2779.82,0.00035753,12]
[379158857,1755168681310,-400.0,0.00035753,12]
[379158858,1755168681319,-2852.68,0.00035753,12]
[379158859,1755168681328,-327.882904,0.00035753,7]
[379158860,1755168681338,-400.0,0.00035753,12]
[379158861,1755168681347,-327.882904,0.00035753,7]
[379158862,1755168681357,-1941.2,0.00035753,12]
[379158863,1755168681366,-514.09,0.00035753,12]
[379158864,1755168681375,-612.31,0.00035753,12]
[379158865,1755168681385,-471.8,0.00035753,12]
[379158866,1755168681394,-215.55451797,0.00035753,12]
[379158867,1755168681404,-2216.51,0.00035753,12]
[379158868,1755168681413,-400.0,0.00035753,12]
[379158869,1755168681423,-327.882904,0.00035753,7]
[379158870,1755168681433,-327.882904,0.00035753,7]
[379158871,1755168681442,-3252.01,0.00035753,12]
[379158872,1755168681452,-400.0,0.00035753,12]
[379158873,1755168681462,-658.73,0.00035753,12]
[379158874,1755168681470,-1777.42,0.00035753,12]
[379158875,1755168681479,-400.0,0.00035753,12]
[379158876,1755168681487,-2274.16,0.00035753,12]
[379158877,1755168681495,-400.0,0.00035753,12]
[379158878,1755168681503,-1973.174496,0.00035753,7]
[379158879,1755168681509,-1973.174496,0.00035753,7]
[379158880,1755168681516,-1766.24,0.00035753,12]
[379158881,1755168681522,-821.08,0.00035753,12]
[379158882,1755168681530,-5925.8,0.00035753,12]
[379158883,1755168681540,-400.0,0.00035753,12]
[379158884,1755168681548,-3066.28,0.00035753,12]
[379158885,1755168681557,-3165.34,0.00035753,12]
[379158886,1755168681567,-1763.2,0.00035753,12]
[379158887,1755168681577,-400.0,0.00035753,12]
[379158888,1755168681587,-2054.66,0.00035753,12]
[379158889,1755168681597,-1973.174496,0.00035753,7]
[379158890,1755168681606,-1973.174496,0.00035753,7]
[379158891,1755168681615,-478.3,0.00035753,12]
[379158892,1755168681624,-400.0,0.00035753,12]
[379158893,1755168681634,-1398.4,0.00035753,12]
[379158894,1755168681643,-400.0,0.00035753,12]
[379158895,1755168681652,-1269.5,0.00035753,12]
[379158896,1755168681666,-400.0,0.00035753,12]
[379158897,1755168681675,-1463.58,0.00035753,12]
[379158898,1755168681684,-911.38,0.00035753,12]
[379158899,1755168681694,-1101.74,0.00035753,12]
[379158900,1755168681703,-551.662638,0.00035753,7]
[379158901,1755168681712,-551.662638,0.00035753,7]
[379158902,1755168681721,-1180.46,0.00035753,12]
[379158903,1755168681730,-400.0,0.00035753,12]
[379158904,1755168681738,-400.0,0.00035753,12]
[379158905,1755168681747,-400.0,0.00035753,12]
[379158906,1755168681757,-496.57,0.00035753,12]
[379158907,1755168681767,-400.0,0.00035753,12]
[379158908,1755168681775,-1171.9,0.00035753,12]
[379158909,1755168681784,-400.0,0.00035753,12]
[379158910,1755168681793,-551.662638,0.00035753,7]
[379158911,1755168681802,-551.662638,0.00035753,7]
[379158912,1755168681811,-464.81117154,0.00035753,12]
[379158913,1755168681819,-1519.23,0.00035753,12]
[379158914,1755168681827,-2277.93,0.00035753,120]
[379158915,1755168681835,-435.86,0.00035753,12]
[379158916,1755168681843,-400.0,0.00035753,12]
[379158917,1755168681851,-610.96,0.00035753,12]
[379158918,1755168681860,-407.95443135,0.00035753,12]
[379158919,1755168681869,-519.88,0.00035753,12]
[379158920,1755168681879,-400.0,0.00035753,12]
[379158921,1755168681888,-400.0,0.00035753,12]
[379158922,1755168681897,-1457.31,0.00035753,12]
[379158923,1755168681906,-400.0,0.00035753,12]
[379158924,1755168681915,-1133.12,0.00035753,12]
[379158925,1755168681925,-2752.21,0.00035753,12]
[379158926,1755168681934,-394.150184,0.00035753,7]
[379158927,1755168681943,-400.0,0.00035753,12]
[379158928,1755168681951,-1527.4,0.00035753,12]
[379158929,1755168681961,-400.0,0.00035753,12]
[379158930,1755168681970,-394.150184,0.00035753,7]
[379158931,1755168681980,-1158.88,0.00035753,12]
[379158932,1755168681989,-1417.13,0.00035753,12]
[379158933,1755168681998,-2021.02,0.00035753,12]
[379158934,1755168682007,-3202.202198,0.00035753,7]
[379158935,1755168682016,-3202.202198,0.00035753,7]
[379158936,1755168682027,-823.99,0.00035753,12]
[379158937,1755168682039,-400.0,0.00035753,12]
[379158938,1755168682049,-394.150184,0.00035753,7]
[379158939,1755168682060,-394.150184,0.00035753,7]
[379158940,1755168682070,-2171.98,0.00035753,12]
[379158941,1755168682079,-3438.65,0.00035753,12]
[379158942,1755168682088,-3202.202198,0.00035753,7]
[379158943,1755168682097,-400.0,0.00035753,12]
[379158944,1755168682107,-400.0,0.00035753,12]
[379158945,1755168682117,-1816.07,0.00035753,12]
[379158946,1755168682127,-2895.96,0.00035753,12]
[379158947,1755168682136,-1880.66,0.00035753,12]
[379158948,1755168682146,-706.65,0.00035753,12]
[379158949,1755168682156,-400.0,0.00035753,12]
[379158950,1755168682165,-400.0,0.00035753,12]
[379158951,1755168682174,-4392.13,0.00035753,12]
[379158952,1755168682191,-1982.41,0.00035753,12]
[379158953,1755168682202,-4577.96,0.00035753,12]
[379158954,1755168682217,-507.58327348,0.00035753,12]
[379158955,1755168682226,-2590.65,0.00035753,12]
[379158956,1755168682235,-3202.202198,0.00035753,7]
[379158957,1755168682244,-1207.01,0.00035753,12]
[379158958,1755168682254,-1864.97,0.00035753,12]
[379158959,1755168682263,-400.0,0.00035753,12]
[379158960,1755168682272,-4123.32,0.00035753,12]
[379158961,1755168682281,-400.0,0.00035753,12]
[379158962,1755168682291,-400.0,0.00035753,12]
[379158963,1755168682300,-400.0,0.00035753,12]
[379158964,1755168682311,-678.98,0.00035753,12]
[379158965,1755168682320,-2678.47,0.00035753,12]
[379158966,1755168682330,-734.21,0.00035753,12]
[379158967,1755168682339,-759.68,0.00035753,12]
[379158968,1755168682348,-1388.76,0.00035753,12]
[379158969,1755168682358,-400.0,0.00035753,12]
[379158970,1755168682366,-5641.83,0.00035753,12]
[379158971,1755168682374,-400.0,0.00035753,12]
[379158972,1755168682383,-818.17,0.00035753,12]
[379158973,1755168682392,-400.0,0.00035753,12]
[379158974,1755168682401,-853.25,0.00035753,12]
[379158975,1755168682411,-820.61,0.00035753,12]
[379158976,1755168682421,-1787.54,0.00035753,12]
[379158977,1755168682430,-3899.74,0.00035753,12]
[379158978,1755168682439,-853.15,0.00035753,12]
[379158979,1755168682449,-1929.01,0.00035753,12]
[379158980,1755168682458,-483.91384869,0.00035753,12]
[379158981,1755168682467,-400.0,0.00035753,12]
[379158982,1755168682476,-2492.5,0.00035753,12]
[379158983,1755168682485,-400.0,0.00035753,12]
[379158984,1755168682494,-1421.54,0.00035753,12]
[379158985,1755168682504,-400.0,0.00035753,12]
[379158986,1755168682517,-719.92,0.00035753,12]
[379158987,1755168682525,-3154.7,0.00035753,12]
[379158988,1755168682535,-2950.97,0.00035753,12]
[379158989,1755168682544,-400.0,0.00035753,12]
[379158990,1755168682553,-400.0,0.00035753,12]
[379158991,1755168682561,-400.0,0.00035753,12]
[379158992,1755168682569,-715.23,0.00035753,12]
[379158993,1755168682578,-1647.68,0.00035753,12]
[379158994,1755168682587,-1788.61,0.00035753,12]
[379158995,1755168682597,-400.0,0.00035753,12]
[379158996,1755168682607,-801.65,0.00035753,12]
[379158997,1755168682616,-400.0,0.00035753,12]
[379158998,1755168682626,-504.80564538,0.00035753,12]
[379158999,1755168682635,-3295.81,0.00035753,12]
[379159000,1755168682644,-2892.45,0.00035753,12]
[379159001,1755168682653,-769.82,0.00035753,12]
[379159002,1755168682662,-400.0,0.00035753,12]
[379159003,1755168682671,-2861.17,0.00035753,12]
[379159004,1755168682680,-400.0,0.00035753,12]
[379159005,1755168682690,-1910.35,0.00035753,12]
[379159006,1755168682699,-400.0,0.00035753,12]
[379159007,1755168682708,-435.76,0.00035753,12]
[379159008,1755168682717,-717.15,0.00035753,12]
[379159009,1755168682726,-400.0,0.00035753,12]
[379159010,1755168682735,-400.0,0.00035753,12]
[379159011,1755168682744,-400.0,0.00035753,12]
[379159012,1755168682753,-400.0,0.00035753,12]
[379159013,1755168682762,-400.0,0.00035753,12]
[379159014,1755168682771,-400.0,0.00035753,12]
[379159015,1755168682780,-417.48,0.00035753,12]
[379159016,1755168682793,-1258.33,0.00035753,12]
[379159017,1755168682803,-587.29,0.00035753,12]
[379159018,1755168682813,-2970.26,0.00035753,12]
[379159019,1755168682822,-507.71,0.00035753,12]
[379159020,1755168682833,-400.0,0.00035753,12]
[379159021,1755168682843,-2971.76,0.00035753,12]
[379159022,1755168682852,-1417.81,0.00035753,12]
[379159023,1755168682861,-469.57,0.00035753,12]
[379159024,1755168682871,-4608.39,0.00035753,12]
[379159025,1755168682880,-400.0,0.00035753,12]
[379159026,1755168682890,-400.0,0.00035753,12]
[379159027,1755168682899,-6924.14,0.00035753,12]
[379159028,1755168682908,-400.0,0.00035753,12]
[379159029,1755168682917,-421.82,0.00035753,12]
[379159030,1755168682927,-400.0,0.00035753,12]
[379159031,1755168682936,-3076.52,0.00035753,12]
[379159032,1755168682945,-400.0,0.00035753,12]
[379159033,1755168682954,-400.0,0.00035753,12]
[379159034,1755168682963,-1112.0,0.00035753,12]
[379159035,1755168682972,-993.68,0.00035753,12]
[379159036,1755168682981,-3293.49,0.00035753,12]
[379159037,1755168682990,-3102.57,0.00035753,12]
[379159038,1755168683000,-844.64,0.00035753,12]
[379159039,1755168683009,-1903.73,0.00035753,12]
[379159040,1755168683019,-11965.95,0.00035753,12]
[379159041,1755168683028,-1918.96,0.00035753,12]
[379159042,1755168683039,-1205.81,0.00035753,12]
[379159043,1755168683050,-3096.97,0.00035753,12]
[379159044,1755168683059,-400.0,0.00035753,12]
[379159045,1755168683068,-400.0,0.00035753,12]
[379159046,1755168683077,-2514.02,0.00035753,12]
[379159047,1755168683087,-702.338289,0.00035753,7]
[379159048,1755168683096,-702.338289,0.00035753,7]
[379159049,1755168683105,-400.0,0.00035753,12]
[379159050,1755168683115,-408.9,0.00035753,12]
[379159051,1755168683125,-400.0,0.00035753,12]
[379159052,1755168683134,-3329.56,0.00035753,12]
[379159053,1755168683143,-768.3,0.00035753,12]
[379159054,1755168683152,-614.21,0.00035753,12]
[379159055,1755168683161,-400.0,0.00035753,12]
[379159056,1755168683170,-905.98,0.00035753,12]
[379159057,1755168683179,-702.338289,0.00035753,7]
[379159058,1755168683188,-702.338289,0.00035753,7]
[379159059,1755168683197,-2978.4,0.00035753,12]
[379159060,1755168683207,-151.0,0.00035753,7]
[379159061,1755168683215,-400.0,0.00035753,12]
[379159062,1755168683225,-151.0,0.00035753,7]
[379159063,1755168683234,-498.33,0.00035753,12]
[379159064,1755168683242,-400.0,0.00035753,12]
[379159065,1755168683252,-4061.22,0.00035753,12]
[379159066,1755168683262,-1066.8,0.00035753,12]
[379159067,1755168683271,-2060.03,0.00035753,12]
[379159068,1755168683280,-1690.82,0.00035753,12]
[379159069,1755168683290,-2039.25,0.00035753,12]
[379159070,1755168683299,-627.39,0.00035753,12]
[379159071,1755168683308,-915.75,0.00035753,12]
[379159072,1755168683317,-400.0,0.00035753,12]
[379159073,1755168683326,-151.0,0.00035753,7]
[379159074,1755168683336,-151.0,0.00035753,7]
[379159075,1755168683345,-3631.72,0.00035753,12]
[379159076,1755168683355,-400.0,0.00035753,12]
[379159077,1755168683365,-400.0,0.00035753,12]
[379159078,1755168683374,-628.78,0.00035753,12]
[379159079,1755168683383,-400.0,0.00035753,12]
[379159080,1755168683393,-400.0,0.00035753,12]
[379159081,1755168683402,-2964.06,0.00035753,12]
[379159082,1755168683411,-647.19,0.00035753,12]
[379159083,1755168683421,-4620.63,0.00035753,12]
[379159084,1755168683430,-649.24,0.00035753,12]
[379159085,1755168683440,-400.0,0.00035753,12]
[379159086,1755168683449,-500.0,0.00035753,12]
[379159087,1755168683459,-5914.76,0.00035753,12]
[379159088,1755168683468,-400.0,0.00035753,12]
[379159089,1755168683478,-441.44,0.00035753,12]
[379159090,1755168683488,-400.0,0.00035753,12]
[379159091,1755168683497,-2347.04,0.00035753,12]
[379159092,1755168683507,-400.0,0.00035753,12]
[379159093,1755168683516,-1298.34,0.00035753,12]
[379159094,1755168683525,-400.0,0.00035753,2]
[379159095,1755168683536,-400.0,0.00035753,12]
[379159096,1755168683545,-601.7,0.00035753,12]